[Event "Titled Tuesday Blitz June 21 Late 2022"]
[White "Sibilio, Mario"]
[Black "Cabarkapa, Novak"]
[WhiteFideId "800422"]
[BlackFideId "943746"]
[WhiteElo "2296"]
[BlackElo "2433"]
[Result "0-1"]
[Round "01"]
[TimeControl "180+1"]
[Date "2022.06.22"]
[WhiteClock "0:00:09"]
[BlackClock "0:00:29"]

1. e4 {[%clk 0:02:54]}  Nf6 {[%clk 0:02:57]} 2. e5 {[%clk 0:02:54]}  Ng8 {[%clk 0:02:57]} 3. d4 {[%clk 0:02:53]}  d5 {[%clk 0:02:57]} 4. c4 {[%clk 0:02:50]}  c6 {[%clk 0:02:55]} 5. Nc3 {[%clk 0:02:49]}  h5 {[%clk 0:02:40]} 6. h3 {[%clk 0:02:45]}  g6 {[%clk 0:02:36]} 7. cxd5 {[%clk 0:02:34]}  cxd5 {[%clk 0:02:36]} 8. Qb3 {[%clk 0:02:32]}  e6 {[%clk 0:02:33]} 9. Nf3 {[%clk 0:02:26]}  Nc6 {[%clk 0:02:33]} 10. Bg5 {[%clk 0:02:15]}  Be7 {[%clk 0:02:32]} 11. Bxe7 {[%clk 0:02:13]}  Ngxe7 {[%clk 0:02:33]} 12. Nb5 {[%clk 0:02:13]}  Nf5 {[%clk 0:02:27]} 13. Bd3 {[%clk 0:02:09]}  a6 {[%clk 0:02:20]} 14. Bxf5 {[%clk 0:02:08]}  axb5 {[%clk 0:02:20]} 15. Bd3 {[%clk 0:02:04]}  Qa5+ {[%clk 0:02:19]} 16. Kf1 {[%clk 0:02:03]}  b4 {[%clk 0:02:17]} 17. g3 {[%clk 0:01:51]}  Qb6 {[%clk 0:02:10]} 18. Rd1 {[%clk 0:01:50]}  Bd7 {[%clk 0:02:00]} 19. Bb1 {[%clk 0:01:49]}  Na5 {[%clk 0:01:58]} 20. Qe3 {[%clk 0:01:45]}  Nc4 {[%clk 0:01:56]} 21. Qg5 {[%clk 0:01:37]}  Nxb2 {[%clk 0:01:53]} 22. Qf6 {[%clk 0:01:34]}  Rf8 {[%clk 0:01:38]} 23. Rc1 {[%clk 0:01:30]}  Nc4 {[%clk 0:01:27]} 24. Kg2 {[%clk 0:01:29]}  Qd8 {[%clk 0:01:26]} 25. Qg7 {[%clk 0:01:26]}  Qe7 {[%clk 0:01:26]} 26. h4 {[%clk 0:01:22]}  O-O-O {[%clk 0:01:23]} 27. Ng5 {[%clk 0:01:22]}  Kb8 {[%clk 0:01:19]} 28. Bd3 {[%clk 0:01:21]}  Rc8 {[%clk 0:01:16]} 29. Rc2 {[%clk 0:01:17]}  Ba4 {[%clk 0:01:13]} 30. Re2 {[%clk 0:01:16]}  Bb5 {[%clk 0:01:09]} 31. Bxg6 {[%clk 0:01:14]}  Rc7 {[%clk 0:00:58]} 32. Bd3 {[%clk 0:01:12]}  Na3 {[%clk 0:00:54]} 33. Bxb5 {[%clk 0:01:08]}  Nxb5 {[%clk 0:00:55]} 34. Rd2 {[%clk 0:01:01]}  Rc4 {[%clk 0:00:54]} 35. Nf3 {[%clk 0:00:53]}  Rfc8 {[%clk 0:00:51]} 36. g4 {[%clk 0:00:51]}  hxg4 {[%clk 0:00:50]} 37. Qxg4 {[%clk 0:00:51]}  Nc3 {[%clk 0:00:47]} 38. h5 {[%clk 0:00:49]}  Ne4 {[%clk 0:00:47]} 39. Re2 {[%clk 0:00:49]}  Rc2 {[%clk 0:00:46]} 40. Rhe1 {[%clk 0:00:36]}  Rxe2 {[%clk 0:00:46]} 41. Rxe2 {[%clk 0:00:36]}  Rh8 {[%clk 0:00:47]} 42. Re1 {[%clk 0:00:34]}  Qf8 {[%clk 0:00:45]} 43. Kf1 {[%clk 0:00:27]}  Rg8 {[%clk 0:00:45]} 44. Qf4 {[%clk 0:00:25]}  Nc3 {[%clk 0:00:38]} 45. h6 {[%clk 0:00:22]}  Rg6 {[%clk 0:00:38]} 46. Re3 {[%clk 0:00:20]}  Qxh6 {[%clk 0:00:35]} 47. Qxh6 {[%clk 0:00:19]}  Rxh6 {[%clk 0:00:36]} 48. Ng5 {[%clk 0:00:19]}  Rh1+ {[%clk 0:00:29]} 49. Kg2 {[%clk 0:00:19]}  Ra1 {[%clk 0:00:30]} 50. Nxf7 {[%clk 0:00:18]}  Rxa2 {[%clk 0:00:31]} 51. Ng5 {[%clk 0:00:15]}  Rc2 {[%clk 0:00:30]} 52. Nxe6 {[%clk 0:00:11]}  b3 {[%clk 0:00:31]} 53. Re1 {[%clk 0:00:10]}  b2 {[%clk 0:00:31]} 54. Nc5 {[%clk 0:00:09]}  Rc1 {[%clk 0:00:29]} 0-1


[Site "https://www.chess.com"]

[Event "Titled Tuesday Blitz June 21 Late 2022"]
[White "Sorensen, Hampus"]
[Black "Yoo, Christopher Woojin"]
[WhiteFideId "8703884"]
[BlackFideId "30909694"]
[WhiteElo "2262"]
[BlackElo "2105"]
[Result "0-1"]
[Round "01"]
[TimeControl "180+1"]
[Date "2022.06.21"]
[WhiteClock "0:00:02"]
[BlackClock "0:00:04"]

1. c4 {[%clk 0:02:57]}  e5 {[%clk 0:02:56]} 2. Nc3 {[%clk 0:02:55]}  Bb4 {[%clk 0:02:55]} 3. g3 {[%clk 0:02:49]}  Nf6 {[%clk 0:02:40]} 4. Bg2 {[%clk 0:02:47]}  O-O {[%clk 0:02:41]} 5. Nf3 {[%clk 0:02:45]}  Re8 {[%clk 0:02:39]} 6. O-O {[%clk 0:02:44]}  Bxc3 {[%clk 0:02:31]} 7. dxc3 {[%clk 0:02:34]}  d6 {[%clk 0:02:27]} 8. Ne1 {[%clk 0:02:33]}  Nc6 {[%clk 0:02:21]} 9. e4 {[%clk 0:02:31]}  a5 {[%clk 0:02:07]} 10. Nc2 {[%clk 0:02:30]}  a4 {[%clk 0:02:06]} 11. Ne3 {[%clk 0:02:23]}  Bd7 {[%clk 0:02:06]} 12. Qc2 {[%clk 0:02:19]}  Na5 {[%clk 0:02:02]} 13. Bd2 {[%clk 0:02:13]}  Ng4 {[%clk 0:01:25]} 14. Nf5 {[%clk 0:02:02]}  Nxc4 {[%clk 0:01:21]} 15. Rad1 {[%clk 0:01:50]}  Nxd2 {[%clk 0:01:18]} 16. Rxd2 {[%clk 0:01:50]}  g6 {[%clk 0:01:17]} 17. Nh4 {[%clk 0:01:45]}  Be6 {[%clk 0:01:12]} 18. c4 {[%clk 0:01:41]}  Nf6 {[%clk 0:01:08]} 19. Nf3 {[%clk 0:01:30]}  Nd7 {[%clk 0:01:07]} 20. h4 {[%clk 0:01:23]}  h6 {[%clk 0:00:54]} 21. Qc1 {[%clk 0:01:23]}  Kg7 {[%clk 0:00:52]} 22. Ne1 {[%clk 0:01:23]}  Nb6 {[%clk 0:00:42]} 23. b3 {[%clk 0:01:21]}  axb3 {[%clk 0:00:43]} 24. axb3 {[%clk 0:01:22]}  Nd7 {[%clk 0:00:38]} 25. Nd3 {[%clk 0:01:21]}  h5 {[%clk 0:00:34]} 26. f4 {[%clk 0:01:18]}  exf4 {[%clk 0:00:34]} 27. Rxf4 {[%clk 0:01:19]}  Qe7 {[%clk 0:00:33]} 28. Qc3+ {[%clk 0:01:09]}  f6 {[%clk 0:00:33]} 29. Rdf2 {[%clk 0:01:08]}  Rf8 {[%clk 0:00:33]} 30. Re2 {[%clk 0:00:22]}  Ne5 {[%clk 0:00:28]} 31. Nb4 {[%clk 0:00:22]}  c6 {[%clk 0:00:25]} 32. Rf1 {[%clk 0:00:21]}  Qc7 {[%clk 0:00:21]} 33. Rd2 {[%clk 0:00:20]}  Rad8 {[%clk 0:00:20]} 34. Nc2 {[%clk 0:00:19]}  Bg4 {[%clk 0:00:16]} 35. Kh2 {[%clk 0:00:16]}  Qe7 {[%clk 0:00:14]} 36. Nd4 {[%clk 0:00:16]}  Ra8 {[%clk 0:00:13]} 37. Qe3 {[%clk 0:00:15]}  Bd7 {[%clk 0:00:12]} 38. Qc3 {[%clk 0:00:13]}  Ng4+ {[%clk 0:00:12]} 39. Kg1 {[%clk 0:00:14]}  Qe5 {[%clk 0:00:12]} 40. Bh3 {[%clk 0:00:13]}  Rae8 {[%clk 0:00:07]} 41. Bxg4 {[%clk 0:00:13]}  Bxg4 {[%clk 0:00:07]} 42. Re1 {[%clk 0:00:10]}  Re7 {[%clk 0:00:06]} 43. Rd3 {[%clk 0:00:04]}  Rfe8 {[%clk 0:00:06]} 44. Rde3 {[%clk 0:00:04]}  Bd7 {[%clk 0:00:02]} 45. Qd2 {[%clk 0:00:04]}  Bg4 {[%clk 0:00:02]} 46. Qc3 {[%clk 0:00:04]}  Qc5 {[%clk 0:00:02]} 47. Qd2 {[%clk 0:00:02]}  Qb6 {[%clk 0:00:02]} 48. Kh2 {[%clk 0:00:03]}  Qc7 {[%clk 0:00:02]} 49. Qf2 {[%clk 0:00:03]}  Re5 {[%clk 0:00:03]} 50. Kg2 {[%clk 0:00:02]}  Qe7 {[%clk 0:00:03]} 51. Qf4 {[%clk 0:00:03]}  d5 {[%clk 0:00:03]} 52. cxd5 {[%clk 0:00:02]}  cxd5 {[%clk 0:00:04]} 0-1


[Site "https://www.chess.com"]

[Event "Titled Tuesday Blitz June 21 Late 2022"]
[White "Svane, Frederik"]
[Black "Hansch, Karsten"]
[WhiteFideId "12923044"]
[BlackFideId "24692239"]
[WhiteElo "2459"]
[BlackElo "2358"]
[Result "1/2-1/2"]
[Round "01"]
[TimeControl "180+1"]
[Date "2022.06.21"]
[WhiteClock "0:00:03"]
[BlackClock "0:00:21"]

1. e4 {[%clk 0:02:59]}  c6 {[%clk 0:02:59]} 2. d4 {[%clk 0:02:59]}  d5 {[%clk 0:03:00]} 3. exd5 {[%clk 0:03:00]}  cxd5 {[%clk 0:03:00]} 4. Nf3 {[%clk 0:03:00]}  Nc6 {[%clk 0:03:00]} 5. c3 {[%clk 0:03:01]}  Bg4 {[%clk 0:03:00]} 6. h3 {[%clk 0:03:02]}  Bh5 {[%clk 0:03:00]} 7. Qb3 {[%clk 0:03:02]}  Qc7 {[%clk 0:02:40]} 8. Qxd5 {[%clk 0:03:02]}  Bxf3 {[%clk 0:02:39]} 9. Qxf3 {[%clk 0:03:02]}  Nxd4 {[%clk 0:02:38]} 10. Qe4 {[%clk 0:02:50]}  Nc6 {[%clk 0:02:35]} 11. Bg5 {[%clk 0:02:46]}  e6 {[%clk 0:02:30]} 12. Nd2 {[%clk 0:02:42]}  Be7 {[%clk 0:02:30]} 13. Bf4 {[%clk 0:02:43]}  Bd6 {[%clk 0:02:22]} 14. Bxd6 {[%clk 0:02:43]}  Qxd6 {[%clk 0:02:22]} 15. Nc4 {[%clk 0:02:38]}  Qc7 {[%clk 0:02:12]} 16. O-O-O {[%clk 0:02:37]}  Nf6 {[%clk 0:02:10]} 17. Qh4 {[%clk 0:02:34]}  O-O {[%clk 0:02:08]} 18. Bd3 {[%clk 0:02:35]}  Rfd8 {[%clk 0:02:07]} 19. Bc2 {[%clk 0:02:33]}  b5 {[%clk 0:02:06]} 20. Ne3 {[%clk 0:02:31]}  b4 {[%clk 0:02:01]} 21. cxb4 {[%clk 0:02:23]}  Rab8 {[%clk 0:01:52]} 22. Rxd8+ {[%clk 0:02:22]}  Qxd8 {[%clk 0:01:50]} 23. Rd1 {[%clk 0:02:20]}  Qb6 {[%clk 0:01:49]} 24. a3 {[%clk 0:02:10]}  a5 {[%clk 0:01:48]} 25. Ng4 {[%clk 0:02:04]}  Nxg4 {[%clk 0:01:40]} 26. Qxh7+ {[%clk 0:01:54]}  Kf8 {[%clk 0:01:40]} 27. hxg4 {[%clk 0:01:51]}  axb4 {[%clk 0:01:40]} 28. Qh8+ {[%clk 0:01:39]}  Ke7 {[%clk 0:01:39]} 29. Qxg7 {[%clk 0:01:39]}  bxa3 {[%clk 0:01:39]} 30. bxa3 {[%clk 0:01:29]}  Qc5 {[%clk 0:01:37]} 31. Rd3 {[%clk 0:01:15]}  Qxf2 {[%clk 0:01:15]} 32. Qc3 {[%clk 0:00:41]}  Rc8 {[%clk 0:01:08]} 33. Rf3 {[%clk 0:00:16]}  Qg1+ {[%clk 0:01:08]} 34. Kb2 {[%clk 0:00:16]}  Qd4 {[%clk 0:01:07]} 35. Qxd4 {[%clk 0:00:15]}  Nxd4 {[%clk 0:01:08]} 36. Rc3 {[%clk 0:00:16]}  Rb8+ {[%clk 0:01:07]} 37. Ka2 {[%clk 0:00:17]}  Kd6 {[%clk 0:01:03]} 38. Bd1 {[%clk 0:00:15]}  e5 {[%clk 0:01:01]} 39. a4 {[%clk 0:00:15]}  e4 {[%clk 0:01:01]} 40. Rc4 {[%clk 0:00:12]}  Kd5 {[%clk 0:01:00]} 41. Rc7 {[%clk 0:00:13]}  e3 {[%clk 0:00:59]} 42. Rd7+ {[%clk 0:00:10]}  Ke4 {[%clk 0:00:56]} 43. Rxf7 {[%clk 0:00:08]}  Kd3 {[%clk 0:00:53]} 44. Rd7 {[%clk 0:00:06]}  Kc3 {[%clk 0:00:43]} 45. Rc7+ {[%clk 0:00:03]}  Kd3 {[%clk 0:00:43]} 46. Rd7 {[%clk 0:00:04]}  Kc3 {[%clk 0:00:43]} 47. a5 {[%clk 0:00:04]}  Ra8 {[%clk 0:00:42]} 48. Rd5 {[%clk 0:00:04]}  e2 {[%clk 0:00:38]} 49. Bxe2 {[%clk 0:00:04]}  Nxe2 {[%clk 0:00:39]} 50. Ka3 {[%clk 0:00:04]}  Kc4 {[%clk 0:00:40]} 51. Re5 {[%clk 0:00:04]}  Nc3 {[%clk 0:00:40]} 52. Kb2 {[%clk 0:00:04]}  Nb5 {[%clk 0:00:40]} 53. Kc2 {[%clk 0:00:04]}  Rxa5 {[%clk 0:00:40]} 54. Re4+ {[%clk 0:00:04]}  Nd4+ {[%clk 0:00:40]} 55. Kd2 {[%clk 0:00:05]}  Ra2+ {[%clk 0:00:40]} 56. Ke3 {[%clk 0:00:06]}  Re2+ {[%clk 0:00:40]} 57. Kf4 {[%clk 0:00:06]}  Rxg2 {[%clk 0:00:40]} 58. Ke5 {[%clk 0:00:06]}  Rd2 {[%clk 0:00:38]} 59. g5 {[%clk 0:00:06]}  Kc5 {[%clk 0:00:38]} 60. g6 {[%clk 0:00:06]}  Rg2 {[%clk 0:00:38]} 61. Kf6 {[%clk 0:00:05]}  Nc6 {[%clk 0:00:37]} 62. g7 {[%clk 0:00:05]}  Kd5 {[%clk 0:00:37]} 63. Re8 {[%clk 0:00:05]}  Rf2+ {[%clk 0:00:36]} 64. Kg6 {[%clk 0:00:05]}  Rg2+ {[%clk 0:00:36]} 65. Kf7 {[%clk 0:00:06]}  Rf2+ {[%clk 0:00:33]} 66. Kg6 {[%clk 0:00:06]}  Rg2+ {[%clk 0:00:33]} 67. Kh7 {[%clk 0:00:07]}  Rh2+ {[%clk 0:00:34]} 68. Kg8 {[%clk 0:00:06]}  Kd6 {[%clk 0:00:33]} 69. Re1 {[%clk 0:00:05]}  Ne5 {[%clk 0:00:27]} 70. Kf8 {[%clk 0:00:04]}  Rf2+ {[%clk 0:00:27]} 71. Ke8 {[%clk 0:00:04]}  Rg2 {[%clk 0:00:27]} 72. Rd1+ {[%clk 0:00:01]}  Ke6 {[%clk 0:00:26]} 73. Kf8 {[%clk 0:00:02]}  Ng6+ {[%clk 0:00:25]} 74. Ke8 {[%clk 0:00:03]}  Ne5 {[%clk 0:00:24]} 75. Kf8 {[%clk 0:00:03]}  Nd7+ {[%clk 0:00:20]} 76. Rxd7 {[%clk 0:00:02]}  Kxd7 {[%clk 0:00:21]} 77. g8=Q {[%clk 0:00:03]}  Rxg8+ {[%clk 0:00:21]} 78. Kxg8 {[%clk 0:00:03]} 1/2-1/2


[Site "https://www.chess.com"]

[Event "Titled Tuesday Blitz June 21 Late 2022"]
[White "Tang, Zoey"]
[Black "Saveliev, Alexei"]
[WhiteFideId "30952530"]
[BlackFideId "24128546"]
[WhiteElo "1636"]
[BlackElo "2281"]
[Result "0-1"]
[Round "01"]
[TimeControl "180+1"]
[Date "2022.06.22"]
[WhiteClock "0:00:04"]
[BlackClock "0:00:21"]

1. Nf3 {[%clk 0:03:00]}  g6 {[%clk 0:02:49]} 2. g3 {[%clk 0:02:59]}  Bg7 {[%clk 0:02:50]} 3. Bg2 {[%clk 0:02:59]}  c5 {[%clk 0:02:50]} 4. c4 {[%clk 0:02:50]}  Nc6 {[%clk 0:02:50]} 5. Nc3 {[%clk 0:02:50]}  d6 {[%clk 0:02:49]} 6. O-O {[%clk 0:02:38]}  e5 {[%clk 0:02:50]} 7. d3 {[%clk 0:02:34]}  f5 {[%clk 0:02:50]} 8. Bg5 {[%clk 0:02:30]}  Nf6 {[%clk 0:02:50]} 9. Nd5 {[%clk 0:02:26]}  O-O {[%clk 0:02:49]} 10. Qd2 {[%clk 0:02:18]}  Be6 {[%clk 0:02:48]} 11. Bxf6 {[%clk 0:02:03]}  Bxf6 {[%clk 0:02:49]} 12. e4 {[%clk 0:02:03]}  fxe4 {[%clk 0:02:41]} 13. dxe4 {[%clk 0:02:04]}  Qd7 {[%clk 0:02:35]} 14. Rfe1 {[%clk 0:01:57]}  Bg4 {[%clk 0:02:30]} 15. Rad1 {[%clk 0:01:46]}  Bxf3 {[%clk 0:02:17]} 16. Bxf3 {[%clk 0:01:46]}  Nd4 {[%clk 0:02:17]} 17. Bg2 {[%clk 0:01:45]}  Bg7 {[%clk 0:02:15]} 18. Qd3 {[%clk 0:01:27]}  Rae8 {[%clk 0:02:14]} 19. a3 {[%clk 0:01:23]}  Rf7 {[%clk 0:02:13]} 20. b4 {[%clk 0:01:16]}  Ref8 {[%clk 0:02:10]} 21. f4 {[%clk 0:01:11]}  h5 {[%clk 0:02:06]} 22. bxc5 {[%clk 0:01:05]}  dxc5 {[%clk 0:02:06]} 23. Rf1 {[%clk 0:00:57]}  h4 {[%clk 0:01:45]} 24. Rd2 {[%clk 0:00:22]}  Qg4 {[%clk 0:01:41]} 25. Rdf2 {[%clk 0:00:20]}  hxg3 {[%clk 0:01:39]} 26. hxg3 {[%clk 0:00:20]}  exf4 {[%clk 0:00:59]} 27. Rxf4 {[%clk 0:00:18]}  Ne2+ {[%clk 0:00:54]} 28. Kh2 {[%clk 0:00:15]}  Nxf4 {[%clk 0:00:53]} 29. Rxf4 {[%clk 0:00:15]}  Rxf4 {[%clk 0:00:52]} 30. Nxf4 {[%clk 0:00:15]}  Bd4 {[%clk 0:00:48]} 31. Bh3 {[%clk 0:00:14]}  Qg5 {[%clk 0:00:44]} 32. Be6+ {[%clk 0:00:11]}  Kh8 {[%clk 0:00:39]} 33. Qf1 {[%clk 0:00:10]}  Qh6+ {[%clk 0:00:36]} 34. Bh3 {[%clk 0:00:10]}  Kg8 {[%clk 0:00:24]} 35. Qg2 {[%clk 0:00:05]}  g5 {[%clk 0:00:21]} 36. Nd3 {[%clk 0:00:04]}  g4 {[%clk 0:00:21]} 0-1


[Site "https://www.chess.com"]

[Event "Titled Tuesday Blitz June 21 Late 2022"]
[White "Tari, Aryan"]
[Black "Mortazavi, Ali"]
[WhiteFideId "1510045"]
[BlackFideId "401323"]
[WhiteElo "2567"]
[BlackElo "2339"]
[Result "0-1"]
[Round "01"]
[TimeControl "180+1"]
[Date "2022.06.21"]
[WhiteClock "0:01:08"]
[BlackClock "0:00:35"]

1. c4 {[%clk 0:03:00]}  Nf6 {[%clk 0:02:59]} 2. g3 {[%clk 0:02:57]}  g6 {[%clk 0:02:59]} 3. Bg2 {[%clk 0:02:54]}  Bg7 {[%clk 0:03:00]} 4. Nc3 {[%clk 0:02:50]}  O-O {[%clk 0:03:01]} 5. d4 {[%clk 0:02:46]}  d6 {[%clk 0:03:01]} 6. Nf3 {[%clk 0:02:45]}  Nbd7 {[%clk 0:03:02]} 7. O-O {[%clk 0:02:45]}  e5 {[%clk 0:03:02]} 8. Qc2 {[%clk 0:02:42]}  c6 {[%clk 0:03:02]} 9. b3 {[%clk 0:02:39]}  Re8 {[%clk 0:03:02]} 10. e4 {[%clk 0:02:38]}  exd4 {[%clk 0:02:54]} 11. Nxd4 {[%clk 0:02:39]}  Nc5 {[%clk 0:02:54]} 12. Bb2 {[%clk 0:02:33]}  a5 {[%clk 0:02:53]} 13. h3 {[%clk 0:02:33]}  Qb6 {[%clk 0:02:49]} 14. Rad1 {[%clk 0:02:32]}  a4 {[%clk 0:02:49]} 15. Nxa4 {[%clk 0:02:29]}  Nxa4 {[%clk 0:02:45]} 16. bxa4 {[%clk 0:02:30]}  Nd7 {[%clk 0:02:36]} 17. Nb3 {[%clk 0:02:27]}  Bxb2 {[%clk 0:02:35]} 18. Qxb2 {[%clk 0:02:28]}  Rxa4 {[%clk 0:02:28]} 19. Rxd6 {[%clk 0:02:28]}  Rxc4 {[%clk 0:02:23]} 20. Rfd1 {[%clk 0:02:28]}  Nc5 {[%clk 0:02:10]} 21. Qf6 {[%clk 0:01:32]}  Nxe4 {[%clk 0:01:55]} 22. Bxe4 {[%clk 0:01:32]}  Rcxe4 {[%clk 0:01:56]} 23. Rd8 {[%clk 0:01:33]}  Bxh3 {[%clk 0:01:10]} 24. R1d4 {[%clk 0:01:22]}  Re1+ {[%clk 0:01:04]} 25. Kh2 {[%clk 0:01:20]}  Bf5 {[%clk 0:00:53]} 26. Nd2 {[%clk 0:01:10]}  Re6 {[%clk 0:00:43]} 27. Qh4 {[%clk 0:01:10]}  Kg7 {[%clk 0:00:36]} 28. Nf3 {[%clk 0:01:07]}  Rxd8 {[%clk 0:00:35]} 29. Rxd8 {[%clk 0:01:08]}  Qxf2+ {[%clk 0:00:35]} 0-1


[Site "https://www.chess.com"]

[Event "Titled Tuesday Blitz June 21 Late 2022"]
[White "Toncheva, Nadya"]
[Black "Terry, Renato"]
[WhiteFideId "2924056"]
[BlackFideId "3803457"]
[WhiteElo "1888"]
[BlackElo "2577"]
[Result "0-1"]
[Round "01"]
[TimeControl "180+1"]
[Date "2022.06.21"]
[WhiteClock "0:02:19"]
[BlackClock "0:02:42"]

1. e4 {[%clk 0:03:00]}  e6 {[%clk 0:03:00]} 2. d4 {[%clk 0:03:01]}  d5 {[%clk 0:02:59]} 3. Nd2 {[%clk 0:03:01]}  Be7 {[%clk 0:02:59]} 4. Bd3 {[%clk 0:03:01]}  c5 {[%clk 0:03:00]} 5. exd5 {[%clk 0:03:01]}  Qxd5 {[%clk 0:02:59]} 6. Ngf3 {[%clk 0:02:59]}  cxd4 {[%clk 0:03:00]} 7. Bc4 {[%clk 0:02:59]}  Qd8 {[%clk 0:02:54]} 8. O-O {[%clk 0:02:58]}  Nc6 {[%clk 0:02:53]} 9. Nb3 {[%clk 0:02:58]}  Bf6 {[%clk 0:02:45]} 10. Bb5 {[%clk 0:02:43]}  Bd7 {[%clk 0:02:44]} 11. Nbxd4 {[%clk 0:02:24]}  Nxd4 {[%clk 0:02:42]} 12. Nxd4 {[%clk 0:02:21]}  Bxd4 {[%clk 0:02:42]} 13. Qxd4 {[%clk 0:02:20]}  Bxb5 {[%clk 0:02:42]} 14. Qxg7 {[%clk 0:02:19]}  Qf6 {[%clk 0:02:42]} 0-1


[Site "https://www.chess.com"]

[Event "Titled Tuesday Blitz June 21 Late 2022"]
[White "Tymrakiewicz, Rafal"]
[Black "Holt, Conrad"]
[WhiteFideId "1108832"]
[BlackFideId "2034387"]
[WhiteElo "2205"]
[BlackElo "2586"]
[Result "0-1"]
[Round "01"]
[TimeControl "180+1"]
[Date "2022.06.21"]
[WhiteClock "0:00:03"]
[BlackClock "0:00:11"]

1. d4 {[%clk 0:03:00]}  d5 {[%clk 0:02:57]} 2. Bg5 {[%clk 0:02:59]}  h6 {[%clk 0:02:53]} 3. Bf4 {[%clk 0:02:56]}  c5 {[%clk 0:02:51]} 4. e3 {[%clk 0:02:56]}  Nc6 {[%clk 0:02:51]} 5. c3 {[%clk 0:02:56]}  Bf5 {[%clk 0:02:49]} 6. Qb3 {[%clk 0:02:55]}  Qd7 {[%clk 0:02:48]} 7. Nf3 {[%clk 0:02:51]}  c4 {[%clk 0:02:47]} 8. Qd1 {[%clk 0:02:49]}  e6 {[%clk 0:02:45]} 9. Nbd2 {[%clk 0:02:48]}  b5 {[%clk 0:02:42]} 10. h3 {[%clk 0:02:44]}  Nf6 {[%clk 0:02:41]} 11. g4 {[%clk 0:02:44]}  Bg6 {[%clk 0:02:37]} 12. Bg2 {[%clk 0:02:44]}  Ne4 {[%clk 0:02:21]} 13. Ne5 {[%clk 0:02:27]}  Nxe5 {[%clk 0:02:21]} 14. Bxe5 {[%clk 0:02:25]}  h5 {[%clk 0:02:21]} 15. Nxe4 {[%clk 0:02:20]}  dxe4 {[%clk 0:02:16]} 16. a4 {[%clk 0:02:03]}  b4 {[%clk 0:02:10]} 17. g5 {[%clk 0:01:44]}  Rc8 {[%clk 0:01:29]} 18. a5 {[%clk 0:01:41]}  b3 {[%clk 0:01:03]} 19. a6 {[%clk 0:01:21]}  Qb5 {[%clk 0:00:57]} 20. Qb1 {[%clk 0:01:11]}  Qd5 {[%clk 0:00:53]} 21. Ra4 {[%clk 0:01:07]}  Be7 {[%clk 0:00:51]} 22. h4 {[%clk 0:01:03]}  f6 {[%clk 0:00:50]} 23. gxf6 {[%clk 0:00:59]}  gxf6 {[%clk 0:00:50]} 24. Bg3 {[%clk 0:00:54]}  Rg8 {[%clk 0:00:49]} 25. Qa1 {[%clk 0:00:53]}  Bd8 {[%clk 0:00:44]} 26. Rb4 {[%clk 0:00:49]}  Bb6 {[%clk 0:00:39]} 27. Qa4+ {[%clk 0:00:45]}  Ke7 {[%clk 0:00:38]} 28. Qb5 {[%clk 0:00:32]}  Be8 {[%clk 0:00:27]} 29. Qxd5 {[%clk 0:00:24]}  exd5 {[%clk 0:00:28]} 30. Bh3 {[%clk 0:00:20]}  Bd7 {[%clk 0:00:15]} 31. Bxd7 {[%clk 0:00:18]}  Kxd7 {[%clk 0:00:16]} 32. Bf4 {[%clk 0:00:11]}  Rc6 {[%clk 0:00:15]} 33. Ke2 {[%clk 0:00:10]}  Ke6 {[%clk 0:00:16]} 34. Ra1 {[%clk 0:00:10]}  Rg4 {[%clk 0:00:15]} 35. Bg3 {[%clk 0:00:09]}  Rc8 {[%clk 0:00:11]} 36. Rxb6+ {[%clk 0:00:07]}  axb6 {[%clk 0:00:11]} 37. a7 {[%clk 0:00:08]}  Ra8 {[%clk 0:00:11]} 38. Bb8 {[%clk 0:00:08]}  Rg8 {[%clk 0:00:11]} 39. Ra6 {[%clk 0:00:06]}  Rgxb8 {[%clk 0:00:11]} 40. axb8=Q {[%clk 0:00:06]}  Rxb8 {[%clk 0:00:12]} 41. Ra7 {[%clk 0:00:04]}  Kf5 {[%clk 0:00:12]} 42. Rh7 {[%clk 0:00:04]}  Kg4 {[%clk 0:00:12]} 43. Rh6 {[%clk 0:00:04]}  Rf8 {[%clk 0:00:12]} 44. f3+ {[%clk 0:00:02]}  exf3+ {[%clk 0:00:12]} 45. Kf2 {[%clk 0:00:03]}  Kxh4 {[%clk 0:00:12]} 46. Kxf3 {[%clk 0:00:03]}  Kg5 {[%clk 0:00:12]} 47. Rh7 {[%clk 0:00:04]}  Ra8 {[%clk 0:00:12]} 48. e4 {[%clk 0:00:04]}  Ra2 {[%clk 0:00:11]} 49. exd5 {[%clk 0:00:03]}  Rxb2 {[%clk 0:00:11]} 50. d6 {[%clk 0:00:03]}  Ra2 {[%clk 0:00:11]} 0-1


[Site "https://www.chess.com"]